fUST/lending_fUST_20250824
["ID","MTS","AMOUNT","RATE_DAILY","PERIOD"]
[381101143,1756041032551,-500.0,0.00041092,31]
[381101144,1756041032560,-500.0,0.00041092,31]
[381101146,1756041032570,-500.0,0.00041092,2]
[381101148,1756041032580,-565.3742332,0.00041092,7]
[381101151,1756041032590,-500.0,0.00041092,31]
[381101153,1756041032601,-500.0,0.00041092,2]
[381101155,1756041032610,-527.38853462,0.00041092,31]
[381101156,1756041032619,-500.0,0.00041092,2]
[381101159,1756041032630,-500.0,0.00041092,31]
[381101161,1756041032639,-500.0,0.00041092,2]
[381101163,1756041032648,-500.0,0.00041092,31]
[381101165,1756041032657,-500.0,0.00041092,2]
[381101167,1756041032667,-500.0,0.00041092,31]
[381101169,1756041032677,-389.71139291,0.00041092,31]
[381101170,1756041032687,-500.0,0.00041092,31]
[381101171,1756041032696,-500.0,0.00041092,31]
[381101172,1756041032706,-500.0,0.00041092,31]
[381101174,1756041032715,-500.0,0.00041092,31]
[381101176,1756041032724,-500.0,0.00041092,31]
[381101177,1756041032734,-500.0,0.00041092,31]
[381101179,1756041032744,-491.87,0.00041095,15]
[381101180,1756041032753,-500.0,0.000417,10]
[381101182,1756041032762,-500.0,0.000417,10]
[381101183,1756041032771,-1097.0,0.00042292,5]
[381101184,1756041032780,-382.94710165,0.00042345,39]
[381101185,1756041032789,-500.0,0.00042888,30]
[381101186,1756041032799,-339.0,0.00044043,2]
[381101187,1756041032808,-382.94710165,0.00044072,43]
[381101188,1756041032817,-340.0,0.00044157,7]
[381101189,1756041032826,-339.0,0.00044289,7]
[381101190,1756041032836,-500.0,0.00044594,30]
[381101191,1756041032845,-337.0,0.00044759,7]
[381101192,1756041032855,-337.0,0.00044805,2]
[381101193,1756041032864,-339.0,0.00044862,30]
[381101194,1756041032873,-337.0,0.0004493,2]
[381101195,1756041032882,-337.0,0.00045042,2]
[381101196,1756041032891,-337.0,0.00045286,7]
[381101197,1756041032901,-1536.0,0.00045382,5]
[381101198,1756041032910,-337.0,0.00045535,7]
[381101199,1756041032920,-337.0,0.00045581,120]
[381101200,1756041032929,-339.0,0.00045631,2]
[381101201,1756041032939,-337.0,0.00045635,2]
[381101202,1756041032950,-339.0,0.00045641,120]
[381101203,1756041032960,-382.94710165,0.00045798,47]
[381101204,1756041032970,-337.0,0.00046089,2]
[381101205,1756041032979,-337.0,0.00046178,2]
[381101206,1756041032988,-340.0,0.00046229,30]
[381101207,1756041032997,-340.0,0.00046306,2]
[381101208,1756041033007,-691.03,0.00046575,120]
[381101209,1756041033016,-337.0,0.00047262,120]
[381101210,1756041033025,-973.0,0.00047337,2]
[381101211,1756041033034,-2155.0,0.00047337,2]
[381101212,1756041033043,-637.0,0.00047337,2]
[381101213,1756041033053,-337.0,0.00047397,7]
[381101214,1756041033062,-337.0,0.0004744,2]
[381101215,1756041033072,-337.0,0.00047462,30]
[381101216,1756041033081,-500.0,0.00047472,30]
[381101217,1756041033090,-382.94710165,0.00047525,50]
[381101218,1756041033100,-337.0,0.00047952,2]
[381101219,1756041033109,-1045.12,0.00048,14]
[381101220,1756041033119,-2200.0,0.00048373,30]
[381101221,1756041033129,-337.0,0.00048387,30]
[381101222,1756041033139,-339.0,0.00048504,2]
[381101223,1756041033149,-832.0,0.00048699,5]
[381101224,1756041033159,-500.0,0.0004888,30]
[381101225,1756041033168,-776.12,0.0004899,30]
[381101226,1756041033178,-158.0,0.00049,120]
[381101227,1756041033188,-158.0,0.00049,90]
[381101228,1756041033198,-158.0,0.00049,60]
[381101229,1756041033207,-160.0,0.00049,60]
[381101230,1756041033217,-160.0,0.00049,45]
[381101231,1756041033227,-500.0,0.0004904,60]
[381101232,1756041033236,-186.26,0.0004925,30]
[381101233,1756041033247,-382.94710165,0.00049251,54]
[381101234,1756041033256,-155.22,0.00049305,30]
[381101235,1756041033266,-500.0,0.00049315,120]
[381101236,1756041033275,-500.0,0.00049315,120]
[381101237,1756041033285,-500.0,0.00049315,120]
[381101238,1756041033294,-500.0,0.00049315,120]
[381101239,1756041033306,-50730.9320763,0.0004959,4]
[381101240,1756041033316,-466.99757044,0.0004959,4]
[381101241,1756041033326,-1045.12,0.000496,14]
[381101242,1756041033335,-223.52,0.00049935,30]
[381101243,1756041033345,-268.22,0.00049945,30]
[381101244,1756041033355,-2328.27901597,0.00049971,120]
[381101245,1756041033366,-438.08597955,0.00049999,120]
[381101246,1756041033375,-158.0,0.0005,120]
[381101247,1756041033385,-2436.029697,0.0005,67]
[381101248,1756041033394,-293.95721228,0.0005,120]
[381101249,1756041033404,-500.0,0.00050136,60]
[381101250,1756041033414,-600.0,0.00050301,90]
[381101251,1756041033424,-973.0,0.00050337,120]
[381101252,1756041033433,-2153.0,0.00050337,120]
[381101253,1756041033443,-637.0,0.00050337,120]
[381101254,1756041033453,-50730.9320763,0.0005048,4]
[381101255,1756041033462,-466.99757044,0.0005048,4]
[381101256,1756041033472,-874.28,0.00050499,120]
[381101257,1756041033482,-500.0,0.00050499,120]
[381101258,1756041033492,-5000.0,0.000505,120]
[381101259,1756041033723,-1500.0,0.000505,67]
[381101260,1756041033733,-480.0,0.00050684,120]
[381101261,1756041033743,-480.0,0.00050684,120]
[381101262,1756041033753,-588.372552,0.00050685,30]
[381101263,1756041033763,-294.186276,0.00050685,30]
[381101264,1756041033773,-5024.67023607,0.000509,120]
[381101265,1756041033787,-2064.5055936,0.000509,120]
[381101266,1756041033799,-593.00555431,0.000509,120]
[381101267,1756041033809,-382.94710165,0.00050978,58]
[381101268,1756041033819,-1500.0,0.00051,67]
[381101269,1756041033829,-500.0,0.00051072,60]
[381101270,1756041033838,-500.0,0.00051232,60]
[381101271,1756041033848,-1045.12,0.000513,14]
[381101272,1756041033858,-1500.0,0.000515,67]
[381101273,1756041033869,-294.186276,0.00051507,30]
[381101274,1756041033878,-294.186276,0.00051507,30]
[381101275,1756041033888,-636.93082783,0.00051562,60]
[381101276,1756041033897,-386.0933947,0.00051644,30]
[381101277,1756041033907,-1122.83113704,0.00051834,2]
[381101278,1756041033916,-1122.83113701,0.00051864,2]
[381101279,1756041033926,-800.0,0.00051869,30]
[381101280,1756041033935,-874.28,0.00051869,120]
[381101281,1756041033945,-200.0,0.0005189,120]
[381101282,1756041033955,-1122.83113701,0.00051894,2]
[381101283,1756041033965,-646.0,0.000519,30]
[381101284,1756041033975,-24106.73912775,0.00051924,4]
[381101300,1756041037739,-376.22310801,0.00035083,2]
[381101301,1756041037748,-778.64791053,0.00051924,4]
[381101302,1756041037760,-33980.89762444,0.00051924,4]
[381101303,1756041037771,-312.16666667,0.00051924,4]
[381101304,1756041037783,-1095.95238467,0.00051924,4]
[381101305,1756041037794,-470.02618797,0.00051924,4]
[381101306,1756041037805,-1222.39634548,0.00051924,4]
[381101319,1756041039747,-573.55977732,0.00051924,4]
[381101320,1756041039805,-140383.34228017,0.00051924,4]
[381101321,1756041039815,-2801.98542264,0.00051924,4]
[381101322,1756041039824,-1122.83113701,0.00051924,2]
[381101323,1756041040048,-200.0,0.0005193,86]
[381101324,1756041040058,-3735.98056352,0.00051934,4]
[381101325,1756041040068,-500.0,0.00051943,120]
[381101326,1756041040078,-500.0,0.00051943,120]
[381101327,1756041040087,-252.77,0.00051943,120]
[381101328,1756041040097,-16539.45805365,0.00051944,2]
[381101329,1756041040110,-10689.98305422,0.00051944,2]
[381101330,1756041040121,-17930.77681296,0.00051944,2]
[381101358,1756041042833,-172293.94567,0.00051944,2]
[381101365,1756041042889,-380.69948482,0.00051944,2]
[381101454,1756041065724,9731.0,0.00027,2]
[381101456,1756041147987,242.47126917,0.000199,2]
[381101457,1756041148454,242.47126906,0.00021627,2]
[381101458,1756041148597,192.05624181,0.00025002,2]
[381101459,1756041148631,242.47126906,0.0002508,2]
[381101460,1756041148887,242.47126906,0.00023353,2]
[381101461,1756041256590,177.09,0.00027,2]
[381101462,1756041314936,390.47151662,0.000199,2]
[381101463,1756041315151,390.47151645,0.00023353,2]
[381101464,1756041315449,390.47151645,0.00026806,6]
[381101465,1756041315554,390.47151645,0.0002508,2]
[381101466,1756041315648,390.47151645,0.00021627,2]
[381101467,1756041360447,892.09701798,0.00027,12]
[381101468,1756041486290,395.23885319,0.000199,2]
[381101469,1756041486702,395.23885296,0.0002508,2]
[381101470,1756041486928,395.23885296,0.00021627,2]
[381101471,1756041487334,395.23885296,0.00026806,6]
[381101472,1756041487803,395.23885296,0.00023353,2]
[381101473,1756041655947,372.95175596,0.000199,2]
[381101474,1756041656034,372.95175577,0.00026806,6]
[381101475,1756041656155,372.95175577,0.00023353,2]
[381101476,1756041656463,372.95175577,0.00021627,2]
[381101477,1756041824959,332.03857746,0.000199,2]
[381101478,1756041825036,332.03857726,0.0002508,2]
[381101479,1756041825123,332.03857726,0.00021627,2]
[381101480,1756041825745,332.03857726,0.00023353,2]
[381101483,1756041999535,287.76676721,0.000199,2]
[381101484,1756041999698,287.76676695,0.00026806,6]
[381101485,1756042000244,287.76676695,0.00023353,2]
[381101486,1756042000402,287.76676695,0.00021627,2]
[381101487,1756042000503,287.76676695,0.0002508,2]
[381101488,1756042030179,-600.0,0.00028069,2]
[381101489,1756042030205,-287.76676695,0.00028533,10]
[381101490,1756042030225,-600.0,0.00029968,2]
[381101491,1756042030246,-1842.17156766,0.00030102,2]
[381101492,1756042030274,-287.76676695,0.00030259,13]
[381101493,1756042030295,-600.0,0.00030568,7]
[381101494,1756042030316,-1600.0,0.00030707,2]
[381101495,1756042030335,-160.0,0.00030709,2]
[381101496,1756042030354,-400.0,0.00030991,2]
[381101497,1756042030373,-200.0,0.00030991,2]
[381101498,1756042030393,-400.0,0.00030991,2]
[381101499,1756042030414,-1600.0,0.00030992,2]
[381101500,1756042030434,-2946.28503109,0.00030993,2]
[381101501,1756042030455,-300.0,0.00030997,2]
[381101502,1756042030475,-159.0,0.00031,120]
[381101503,1756042030496,-293.673639,0.00031187,2]
[381101504,1756042030522,-287.76676695,0.00031986,17]
[381101505,1756042030541,-600.0,0.00032341,7]
[381101506,1756042030561,-417.37546552,0.00032802,2]
[381101507,1756042030580,-160.0,0.00032849,2]
[381101508,1756042030599,-232.42214577,0.00032877,2]
[381101509,1756042030621,-160.0,0.00032879,2]
[381101510,1756042030640,-215.99145658,0.00032879,2]
[381101511,1756042030660,-160.0,0.00032879,2]
[381101512,1756042030679,-844.67759735,0.00032879,2]
[381101513,1756042030699,-217.07852671,0.0003288,2]
[381101514,1756042030718,-376.22310801,0.00032883,2]
[381101515,1756042030738,-157.556,0.00032889,34]
[381101516,1756042030759,-1479.27859746,0.0003289,2]
[381101517,1756042050094,-500.0,0.0003115,7]
[381101518,1756042050114,-500.0,0.00031166,7]
[381101519,1756042050136,-500.0,0.00032781,7]
[381101520,1756042050156,-199.0,0.00032889,120]
[381101521,1756042050177,-507.46724139,0.0003289,2]
[381101522,1756042050197,-3047.71717898,0.0003289,2]
[381101523,1756042050219,-6468.32086505,0.0003289,2]
[381101524,1756042050240,-599.26699296,0.0003289,2]
[381101525,1756042050264,-199.0,0.000329,10]
[381101526,1756042050284,-504.31630005,0.00032973,5]
[381101527,1756042050305,-500.0,0.00032973,5]
[381101528,1756042050324,-395.02903444,0.00032973,5]
[381101529,1756042050345,-500.0,0.00032973,5]
[381101530,1756042050365,-501.11028575,0.00032973,5]
[381101531,1756042050386,-500.0,0.00032973,5]
[381101532,1756042050405,-500.0,0.00032973,5]
[381101533,1756042050426,-191.59,0.0003298,3]
[381101534,1756042050446,-574.77,0.0003298,3]
[381101535,1756042050465,-255.41,0.0003298,3]
[381101536,1756042050485,-766.25,0.0003298,3]
[381101537,1756042050505,-225.26539274,0.00032989,7]
[381101538,1756042050526,-229.48602591,0.00032989,7]
[381101539,1756042050549,-500.0,0.00032989,7]
[381101540,1756042050570,-494.12791973,0.00032989,2]
[381101541,1756042050591,-265.5234881,0.00032989,7]
[381101542,1756042050611,-500.0,0.00032989,2]
[381101543,1756042050631,-500.0,0.00032989,2]
[381101544,1756042050651,-500.0,0.00032989,2]
[381101545,1756042050671,-365.69851297,0.00032989,2]
[381101546,1756042050691,-306.66018568,0.00032989,7]
[381101547,1756042050711,-1339.45,0.00032989,120]
[381101548,1756042050731,-101788.07994525,0.0003299,2]
[381101549,1756042054081,-500.0,0.00028722,2]
[381101550,1756042054103,-500.0,0.00028847,2]
[381101551,1756042054125,-500.0,0.00029381,2]
[381101552,1756042054147,-500.0,0.00029436,2]
[381101553,1756042054170,-89802.555721,0.0003299,2]
[381101557,1756042113398,362.68129068,0.00026,2]
[381101561,1756042119120,22607.86903134,0.00025,2]
[381101563,1756042149118,-300.0,0.00027499,2]
[381101564,1756042149138,-4000.0,0.000275,2]
[381101565,1756042149157,-11889.17658245,0.000275,2]
[381101567,1756042170085,333.69838891,0.000199,2]
[381101568,1756042170443,333.69838867,0.00026806,6]
[381101569,1756042170499,333.69838867,0.0002508,2]
[381101570,1756042170778,333.69838867,0.00021627,2]
[381101575,1756042231766,1665.75833466,0.000275,3]
[381101606,1756042232230,-300.0,0.00027499,2]
[381101607,1756042232240,-300.0,0.00027499,2]
[381101608,1756042232250,-300.0,0.00027499,2]
[381101610,1756042232259,-300.0,0.00027499,2]
[381101611,1756042232269,-1200.0,0.00027499,2]
[381101614,1756042232278,-7800.283969,0.000275,2]
[381101615,1756042232290,-25524.0692328,0.000275,2]
[381101616,1756042232299,-2666.75253159,0.00028433,2]
[381101617,1756042232309,-333.69838867,0.00028533,10]
[381101618,1756042232318,-875.66732,0.00029,2]
[381101620,1756042232327,-900.0,0.0002935,2]
[381101622,1756042232337,-600.0,0.000295,2]
[381101623,1756042232346,-420.0,0.00029714,2]
[381101624,1756042232356,-500.0,0.00029783,2]
[381101625,1756042232365,-558.0,0.00029845,2]
[381101626,1756042232374,-261.21304905,0.0003,30]
[381101627,1756042232384,-3556.09433267,0.00030063,2]
[381101629,1756042238137,-4149.6381435,0.00030063,2]
[381101630,1756042238151,-241.25087911,0.00030063,2]
[381101631,1756042238161,-4312.21391004,0.00030063,2]
[381101632,1756042238170,-284.09789342,0.0003013,2]
[381101634,1756042238180,-16216.43932111,0.00030163,2]
[381101636,1756042238189,-1079097.55080455,0.00030163,20]
[381101637,1756042238198,-91069.94384258,0.00030163,2]
[381101638,1756042238208,-300.0,0.00030163,2]
[381101639,1756042238217,-3873.96196604,0.00030163,2]
[381101640,1756042238226,-808.28123257,0.00030163,2]
[381101642,1756042238236,-254.34225178,0.00030163,2]
[381101644,1756042238245,-296.3563753,0.00030163,2]
[381101646,1756042238255,-326.43437868,0.00030163,2]
[381101647,1756042238265,-291.33489407,0.00030163,2]
[381101649,1756042238274,-51637.32683204,0.00030163,2]
[381101651,1756042238284,-636.11757304,0.00030163,2]
[381101653,1756042238293,-1359.07355767,0.00030163,2]
[381101655,1756042238302,-156.34370989,0.00030163,2]
[381101657,1756042238311,-299.29762533,0.00030163,2]
[381101659,1756042238320,-6281.78360817,0.00030163,2]
[381101660,1756042238330,-3049.32238524,0.00030163,2]
[381101662,1756042238339,-157.3518319,0.00030163,2]
[381101664,1756042238348,-100415.79719876,0.00030163,2]
[381101666,1756042238357,-1713.42361826,0.00030163,2]
[381101668,1756042238367,-1865.91893809,0.00030163,2]
[381101669,1756042238376,-506.69724601,0.00030163,2]
[381101670,1756042238385,-40000.0,0.00030163,2]
[381101671,1756042238394,-178.98316622,0.00030163,2]
[381101672,1756042238404,-467.02991467,0.00030163,2]
[381101673,1756042238413,-30395.63107418,0.00030163,2]
[381101674,1756042238422,-188.83705339,0.00030163,2]
[381101675,1756042238432,-1394.04328881,0.00030163,2]
[381101676,1756042238441,-5883.26239625,0.00030163,2]
[381101677,1756042238450,-10664.47093981,0.00030163,2]
[381101678,1756042238459,-650.04705114,0.00030163,2]
[381101679,1756042238468,-902.90035199,0.00030163,2]
[381101680,1756042238478,-500.0,0.00030163,3]
[381101681,1756042238487,-475.05422047,0.00030163,2]
[381101682,1756042238496,-2920.0,0.00030163,2]
[381101683,1756042238506,-163.0157558,0.00030163,2]
[381101684,1756042238515,-384.32187579,0.00030163,2]
[381101685,1756042238524,-201.10306259,0.00030163,2]
[381101686,1756042238533,-3141.94372328,0.00030163,2]
[381101687,1756042238542,-2344.0878299,0.00030163,2]
[381101688,1756042238551,-166.30596331,0.00030163,2]
[381101689,1756042238560,-100069.79748373,0.00030163,2]
[381101690,1756042238570,-150.07283096,0.00030163,2]
[381101691,1756042238579,-735.82,0.00030172,3]
[381101692,1756042238588,-606.69096777,0.00030173,5]
[381101693,1756042238598,-500.0,0.00030173,5]
[381101694,1756042238607,-500.0,0.00030173,5]
[381101695,1756042238616,-500.0,0.00030173,5]
[381101696,1756042238625,-500.0,0.00030173,5]
[381101697,1756042238634,-500.0,0.00030173,5]
[381101698,1756042238643,-500.0,0.00030173,5]
[381101699,1756042238653,-500.0,0.00030173,5]
[381101700,1756042238663,-500.0,0.00030173,5]
[381101701,1756042238672,-500.92164858,0.00030173,5]
[381101702,1756042238681,-500.0,0.00030173,5]
[381101703,1756042238690,-500.0,0.00030173,5]
[381101704,1756042238700,-214.66212998,0.00030181,2]
[381101705,1756042238710,-207.29983477,0.00030181,2]
[381101706,1756042238720,-575.84406981,0.00030181,2]
[381101707,1756042238729,-519.04003293,0.00030181,2]
[381101708,1756042238739,-173.8844032,0.00030181,2]
[381101709,1756042238749,-975.3121391,0.000302,2]
[381101710,1756042238760,-23246.74,0.000302,2]
[381101711,1756042238769,-1630.32,0.000302,7]
[381101712,1756042238779,-333.69838867,0.00030259,13]
[381101713,1756042238788,-770.0,0.000305,3]
[381101714,1756042238798,-376.22310801,0.00030654,2]
[381101715,1756042238807,-215.99145658,0.00030654,2]
[381101716,1756042238817,-160.0,0.00030654,2]
[381101717,1756042238826,-844.67759735,0.00030654,2]
[381101718,1756042238835,-500.0,0.00030721,5]
[381101719,1756042238845,-500.0,0.00030721,5]
[381101720,1756042238854,-509.96383387,0.00030721,5]
[381101721,1756042238863,-500.0,0.00030721,5]
[381101722,1756042238873,-500.0,0.00030721,5]
[381101723,1756042238882,-501.66877216,0.00030721,5]
[381101724,1756042238891,-500.0,0.00030865,7]
[381101725,1756042238900,-302.574638,0.0003099,2]
[381101726,1756042238909,-4312.21391003,0.00031482,2]
[381101727,1756042238918,-500.0,0.0003177,7]
[381101728,1756042238927,-4257.13534005,0.000319,2]
[381101729,1756042238936,-2666.75253155,0.00031911,2]
[381101730,1756042238945,-333.69838867,0.00031986,17]
[381101731,1756042238956,-574.0,0.00032108,2]
[381101732,1756042238965,-199.0,0.00032789,120]
[381101733,1756042238975,-199.0,0.00032789,120]
[381101734,1756042238985,-160.0,0.00032967,2]
[381101735,1756042238995,-500.0,0.00032973,5]
[381101736,1756042239004,-500.0,0.00032973,2]
[381101737,1756042239013,-500.0,0.00032973,5]
[381101738,1756042239022,-500.0,0.00032973,5]
[381101739,1756042239032,-500.0,0.00032973,5]
[381101740,1756042239041,-500.0,0.00032973,5]
[381101741,1756042239050,-503.55384201,0.00032973,5]
[381101742,1756042239060,-500.0,0.00032973,5]
[381101743,1756042239069,-500.0,0.00032973,5]
[381101744,1756042239079,-1283.64,0.00032989,120]
[381101745,1756042239088,-243339.47005729,0.0003299,2]
[381101746,1756042239101,-22075.15904171,0.0003299,2]
[381101747,1756042239111,-2890.46917272,0.0003299,2]
[381101748,1756042239121,-151.0,0.0003299,7]
[381101749,1756042239130,-151.0,0.0003299,7]
[381101750,1756042239139,-151.0,0.0003299,7]
[381101751,1756042239148,-151.0,0.0003299,7]
[381101752,1756042239158,-151.0,0.0003299,7]
[381101753,1756042239167,-151.0,0.0003299,7]
[381101754,1756042239175,-151.0,0.0003299,7]
[381101755,1756042239185,-267.586795,0.0003299,7]
[381101756,1756042239194,-151.0,0.0003299,7]
[381101757,1756042239203,-267.586795,0.0003299,7]
[381101758,1756042239213,-162.416697,0.0003299,7]
[381101759,1756042239223,-757.851641,0.0003299,7]
[381101760,1756042239232,-151.0,0.0003299,7]
[381101761,1756042239242,-162.416697,0.0003299,7]
[381101762,1756042239251,-267.586795,0.0003299,7]
[381101763,1756042239260,-757.851641,0.0003299,7]
[381101764,1756042239269,-151.0,0.0003299,7]
[381101765,1756042239278,-162.416697,0.0003299,7]
[381101766,1756042239288,-757.851641,0.0003299,7]
[381101767,1756042239297,-267.586795,0.0003299,7]
[381101768,1756042239306,-151.0,0.0003299,7]
[381101769,1756042239315,-162.416697,0.0003299,7]
[381101770,1756042239324,-192.287821,0.0003299,7]
[381101771,1756042239334,-68729.68265437,0.00033,10]
[381101772,1756042239353,-1371.63859856,0.00033,10]
[381101773,1756042239369,-854.47620674,0.00033,10]
[381101774,1756042239380,-1619.38572393,0.00033,10]
[381101776,1756042240141,-4312.21391003,0.000329,2]
[381101777,1756042240152,-757.851641,0.0003299,7]
[381101778,1756042240162,-8226.90745734,0.00033,10]
[381101779,1756042240173,-7066.60340894,0.00033,10]
[381101780,1756042240669,-13858.171041,0.00033,10]
[381101787,1756042241898,199.0,0.00026749,20]
[381101791,1756042243572,-74.15436757,0.00030162,2]
[381101793,1756042246417,-1953.892604,0.00030162,2]
[381101794,1756042246433,-2405.97773585,0.00030162,2]
[381101795,1756042246443,-472087.68488912,0.00033,10]
[381101796,1756042246452,-153.31,0.00033,7]
[381101797,1756042246462,-160.0,0.00033,10]
[381101798,1756042246471,-151.0,0.00033,7]
[381101799,1756042246481,-151.0,0.00033,7]
[381101800,1756042246490,-151.0,0.00033,7]
[381101801,1756042246500,-151.0,0.00033,7]
[381101802,1756042246509,-218.942282,0.00033,7]
[381101803,1756042246518,-160.0,0.00033,10]
[381101804,1756042246527,-151.0,0.00033,7]
[381101805,1756042246537,-217.07852671,0.00033,10]
[381101806,1756042246547,-267.586795,0.00033,7]
[381101807,1756042246556,-151.0,0.00033,7]
[381101808,1756042246565,-162.416697,0.00033,7]
[381101809,1756042246575,-267.586795,0.00033,7]
[381101810,1756042246584,-757.851641,0.00033,7]
[381101811,1756042246593,-162.416697,0.00033,7]
[381101812,1756042246603,-267.586795,0.00033,7]
[381101813,1756042246612,-757.851641,0.00033,7]
[381101814,1756042246621,-151.0,0.00033,7]
[381101815,1756042246631,-162.416697,0.00033,7]
[381101816,1756042246640,-757.851641,0.00033,7]
[381101817,1756042246649,-267.586795,0.00033,7]
[381101818,1756042246658,-151.0,0.00033,7]
[381101819,1756042246668,-162.416697,0.00033,7]
[381101820,1756042246677,-757.851641,0.00033,7]
[381101821,1756042246687,-800.0,0.00033368,3]
[381101822,1756042246696,-1630.32,0.000334,14]
[381101823,1756042246705,-260.0,0.00033515,2]
[381101824,1756042246714,-183.10878006,0.00033521,5]
[381101825,1756042246724,-1000.0,0.00033521,5]
[381101826,1756042246733,-1000.0,0.00033521,2]
[381101827,1756042246742,-1006.00466617,0.00033521,5]
[381101828,1756042246751,-1008.36832381,0.00033521,5]
[381101829,1756042246760,-1000.0,0.00033521,5]
[381101830,1756042246770,-501.61147393,0.00033521,5]
[381101831,1756042246779,-1002.07133959,0.00033521,5]
[381101832,1756042246788,-600.0,0.00033659,20]
[381101833,1756042246797,-250.0,0.00033692,2]
[381101834,1756042246806,-333.69838867,0.00033712,21]
[381101835,1756042246815,-500.0,0.00033713,7]
[381101836,1756042246825,-500.0,0.00033778,7]
[381101837,1756042246835,-23246.74,0.000338,14]
[381101838,1756042246844,-360.0,0.00034063,2]
[381101839,1756042246854,-1500.0,0.00034068,5]
[381101840,1756042246863,-1500.0,0.00034068,2]
[381101841,1756042246872,-1500.0,0.00034068,5]
[381101842,1756042246881,-500.0,0.00034276,7]
[381101843,1756042246890,-383.18,0.0003435,3]
[381101844,1756042246900,-510.82,0.0003435,3]
[381101845,1756042246909,-1283.64,0.00034359,120]
[381101846,1756042246918,-460.0,0.00034611,2]
[381101847,1756042246927,-171.23820561,0.00034616,5]
[381101848,1756042246936,-1500.0,0.00034616,2]
[381101849,1756042246947,-2000.0,0.00034616,5]
[381101850,1756042246956,-230.43683106,0.00034673,5]
[381101851,1756042246966,-500.0,0.00034673,5]
[381101852,1756042246975,-151.0,0.000347,16]
[381101853,1756042246987,-49908.53328505,0.000347,30]
[381101854,1756042246997,-160.0,0.000347,30]
[381101855,1756042247006,-217.07852671,0.000347,30]
[381101856,1756042247015,-151.0,0.00035,19]
[381101857,1756042247026,-10630.62792273,0.00035,2]
[381101858,1756042247035,-262.30730692,0.00035,120]
[381101859,1756042247044,-652.40822015,0.00035,2]
[381101860,1756042247053,-1816.13392985,0.00035,2]
[381101861,1756042247070,-960.0,0.00035048,15]
[381101862,1756042247087,-580.0,0.00035158,2]
[381101863,1756042247096,-2000.0,0.00035164,5]
[381101864,1756042247112,-151.0,0.000352,17]
[381101865,1756042247128,-500.0,0.00035221,5]
[381101866,1756042247138,-2666.75253155,0.00035388,2]
[381101867,1756042247147,-159.604134,0.00035476,2]
[381101868,1756042247157,-240.87243106,0.0003549,3]
[381101869,1756042247167,-159.0,0.000355,120]
[381101870,1756042247176,-1283.64,0.00035729,120]
[381101871,1756042247185,-1630.32,0.000358,14]
[381101872,1756042247194,-155.78192788,0.00036,30]
[381101873,1756042247206,-202.69239152,0.0003621,2]
[381101874,1756042247215,-263.64542798,0.0003624,2]
[381101875,1756042247225,-159.604134,0.00036301,2]
[381101876,1756042247234,-929.12694233,0.00036428,2]
[381101877,1756042247243,-565.52162147,0.00036428,2]
[381101878,1756042247252,-500.0,0.00036433,7]
[381101879,1756042247261,-23246.74,0.000365,14]
[381101880,1756042247271,-500.0,0.00036721,7]
[381101881,1756042247280,-720.0,0.00037025,20]
[381101882,1756042247289,-1283.64,0.00037099,120]
[381101883,1756042247299,-500.0,0.00037157,7]
[381101884,1756042247308,-333.69838867,0.00037166,28]